[Event "Tata Steel Chess Masters 2023"]
[Site "Chess.com"]
[Date "2023.01.25"]
[Round "10"]
[White "Gukesh, D."]
[Black "Praggnanandhaa, R."]
[Result "1-0"]
[WhiteElo "2725"]
[BlackElo "2684"]
[ECO "A33"]
[EventDate "2023.??.??"]
[Annotator "rafael"]
[PlyCount "79"]
[Beauty "7697810331167"]
[EventType "schev"]
[EventRounds "4"]
[TimeControl "6000+30"]

1.c4 c5 2.Nf3 Nf6 3.Nc3 Nc6 4.d4 cxd4 5.Nxd4 e6 6.a3 {This is the second most popular move in this well-known variant of the English Opening. 6.g3 is the most played, but White has several other tries.} 6...Be7 7.e4 O-O 8.Nf3 Qa5 $5 {A modern move, played several times by elite players. The idea is quite concrete: Black's queen heads to an exotic location on h5, from where it will support the d7-d5 advance.} 9.Bd2 Qh5 10.Rg1 $5 {An interesting idea that was created in the laboratory of GM Giri, a player with phenomenal opening preparation. It has been played only once before, but both players were clearly well prepared.} ( 10.Be2 d5 $1 {And Black achieves equality, as has been proven in several games.} ) 10...d5 $1 {The critical test.} ( 10...a6 11.h3 Ne5 $6 12.g4 Nxf3+ 13.Qxf3 Qc5 14.g5 {White is clearly better: Giri-Nepomniachtchi, Legends of Chess 2020.} ) 11.g4 $1 Nxg4 12.cxd5 exd5 13.Nxd5 {Both players got into this position quickly, evidently relying on their respective computer's analysis.} 13...Bc5 14.Qe2 $1 {An important move, defending the f2-pawn by tactical means, as well as setting up long castling.} 14...f5 $1 {The best move, opening the game and securing a square for the queen on f7.} ( 14...Bxf2+ $2 {loses material after} 15.Qxf2 Nxf2 16.Nf6+ ) 15.Nf4 {Gukesh thought for a long time before playing this move. His preparation was either over or forgotten.} 15...Qf7 16.Rg2 $2 {After this move it was Praggnanandhaa's time to think for a long time. He clearly didn't expect this move and there is a reason for this, as the computer shows decisive advantage for Black. Both 16.Ng5 and 16.0-0-0 are better moves and leads to very complex positions that will certainly be deeply analyzed by opening experts.} ( 16.Ng5 Qb3 ( 16...Qe7 17.O-O-O $1 {with chances for both sides.} ) 17.Qc4+ Qxc4 18.Bxc4+ Kh8 {with a chaotic position, despite the exchange of queens.} ) ( 16.O-O-O Nd4 17.Nxd4 Bxd4 18.Qc4 Bxf2 19.Qc3 $1 {Threatening 20.Bc4, with complicated play. The position should be equal with good play by both sides.} ) 16...Qe7 $2 {Black misses the winning continuation.} ( 16...fxe4 $1 17.Ng5 Qf5 $1 {with a decisive advantage in all the lines, for instance:} 18.Rxg4 ( 18.Nxe4 Nd4 19.Qc4+ Kh8 20.Nxc5 Qe5+ 21.Kd1 Rxf4 $1 22.Nd3 ( 22.Bxf4 Qxf4 {with a deadly attack.} ) 22...Qh5 $1 {and Black wins.} ) 18...Qxg4 19.Qc4+ Kh8 20.Qxc5 Rf5 $1 21.Nd5 Bd7 $1 {White's pieces are misplaced and his king is insecure.} ) 17.e5 $1 {A deep move, sacrificing a pawn and not allowing black's pieces to activate. Furthermore, White will attack with the bishops on the a2-g8 and a1-h8 diagonal, with the support of the rook on the g-file.} ( 17.exf5 Bxf5 {leads only to equality.} ) 17...Ncxe5 ( 17...Ngxe5 18.O-O-O $1 Nxf3 19.Qxf3 {White is ready to start the winning attack with Bc4 and Bc3.} ) 18.O-O-O $1 Bd6 ( 18...Nxf3 19.Qxf3 {is also hopeless. The bishops will come into play and the development advantage will make the difference.} ) 19.Bc3 Nxf3 20.Qxf3 Be6 21.h3 $2 {That move almost throws away a sure win.} ( 21.Nxe6 $1 Qxe6 22.h3 Nf6 23.Qxb7 Bf4+ 24.Kc2 Qe4+ 25.Qxe4 fxe4 26.Bc4+ Kh8 27.Rd7 $1 Nxd7 28.Bxg7# ) 21...Be5 $2 {He probably thought the position was just losing, but there is a miracle escape.} ( 21...Bxf4+ $1 22.Qxf4 Nf6 23.Re1 {This looks pretty ugly to Black, but amazingly it's still possible to fight if you find all the forced moves.} 23...Rf7 $1 24.Bc4 Ne4 $1 25.Bxg7 $1 {The best chance to fight for an advantage.} ( 25.Bxe6 Qxe6 26.f3 Nc5 $1 {This is the point of black's defense. There is a double on d3.} ) 25...Rxg7 26.Rxg7+ Kxg7 27.Rg1+ Kh8 28.Qe5+ Qf6 29.Qxf6+ Nxf6 30.Bxe6 f4 {After all this confusion we arrive at an endgame with advantage for White thanks to the bishop against knight and the king closer to the center, but there are drawing chances.} ) 22.Nxe6 Qxe6 23.hxg4 {White wins a piece, but the game still has some adventures.} 23...Bxc3 24.bxc3 Rad8 ( 24...Qb3 25.Qd5+ {Exchanging queens and forcing resignation.} ) 25.gxf5 {A brave move, which shows how Gukesh confidence in his analysis. There is a much safer way to win.} ( 25.Rxd8 Rxd8 26.Qe2 {This leads to a simple win.} ) 25...Rxd1+ {Now White wins easily. The critical moves are 25...Qb3 or 25...Qa2. In both cases only one move win. Gukesh, evidently, had seen it.} ( 25...Qb3 26.Rxg7+ $1 {A nice idea that wins by force.} 26...Kxg7 ( 26...Kh8 27.Rxh7+ Kxh7 28.Qh5+ Kg7 29.Qg6+ Kh8 30.Qh6+ Kg8 31.Bc4+ Qxc4 32.Qg6+ Kh8 33.Rh1+ {and mate.} ) 27.Qg3+ Kf6 ( 27...Kf7 28.Qc7+ Kf6 29.Rxd8 Qxa3+ 30.Kd2 {The checks will soon be over.} ) ( 27...Kh8 28.Qe5+ Kg8 29.Bc4+ $1 Qxc4 30.Rg1+ Kf7 31.Rg7# ) 28.Qh4+ Kg7 ( 28...Kf7 29.Bc4+ ) ( 28...Kxf5 29.Bh3+ {with a mating attack.} ) 29.Qe7+ Kh6 30.Rd3 $1 Rxd3 31.Qxf8+ {With an easy win.} ) ( 25...Qa2 26.Rxg7+ $1 {The same idea.} 26...Kxg7 ( 26...Kh8 27.Rxh7+ ) 27.Qg3+ Kh6 28.Qh4+ Kg7 29.Qe7+ ( 29.Qg5+ {is also winning.} 29...Kf7 30.Rxd8 Rxd8 31.Qxd8 Qa1+ 32.Kd2 Qxf1 33.Qd5+ {with a winning queen endgame.} ) 29...Kh6 30.Rxd8 Rxd8 31.Qxd8 Qa1+ 32.Kd2 Qxf1 33.Qh4+ Kg7 34.f6+ Kg6 35.f7 Kxf7 36.Qxh7+ {And White wins because he will be able to pick another pawn, for example:} 36...Kf6 37.Qh4+ Kf7 38.Qf4+ Kg6 39.Qe4+ Kf6 40.Qd4+ {and the a7-pawn falls.} ) 26.Qxd1 Qa2 {Now White is just a piece up and there are several winning methods. Gukesh has no problem converting the advantage.} 27.Bd3 Re8 28.Rg4 $1 Qxa3+ 29.Kd2 Qb2+ 30.Qc2 Qb6 31.Qa2+ Kh8 32.Rd4 {Nice centralization!} 32...Qh6+ 33.Kc2 Qh2 34.Qf7 {The winning attack begins.} 34...Qxf2+ 35.Kb3 Rg8 36.Bc4 Rb8 37.Qe7 h5 38.Qg5 Qf3 39.Rh4 Qd1+ 40.Kb2 1-0

[Event "Tata Steel Chess Masters 2023"]
[Site "Chess.com"]
[Date "2023.01.29"]
[Round "13"]
[White "Abdusattorov, Nodirbek"]
[Black "Van Foreest, Jorden"]
[Result "0-1"]
[WhiteElo "2713"]
[BlackElo "2681"]
[ECO "B48"]
[EventDate "2023.??.??"]
[Annotator "rafael"]
[PlyCount "98"]
[Beauty "7014621121567"]
[EventType "schev"]
[EventRounds "4"]
[TimeControl "40/6000+30:20/3000+30:900+30"]

1.e4 c5 2.Nf3 e6 3.d4 cxd4 4.Nxd4 Nc6 5.Nc3 Qc7 {The Sicilian Taimanov is one of my favorite defenses, and I'm happy whenever I see it in elite tournaments.} 6.Be3 a6 7.Qf3 {A modern move and currently considered one of the most dangerous ways to face the Taimanov.} 7...h5 $5 {[%c_effect h5;square;h5;type;Interesting;persistent;true] Only Black's eighth most popular move. Once again van Foreest lives up to his reputation as a creative player and a finder of new ideas even in well-known openings. This pawn advance is usually played only after 7...Ne5 8.Qg3.} 8.O-O-O ( 8.Qg3 d6 9.f4 b5 10.a3 Bb7 {with chances for both sides in Kuybokarov-Predke, Abu Dhabi 2022.} ) 8...b5 9.Qg3 $146 ( 9.Nxc6 Qxc6 10.Bd3 Bb7 11.Rhe1 Be7 12.Bd4 b4 ( 12...Nf6 {is possible.} ) 13.Nd5 $1 {[%c_effect d5;square;d5;type;GreatFind;persistent;true]} 13...exd5 14.Bxg7 Rh6 15.exd5 Qxd5 16.Qxd5 Bxd5 17.Bxh6 Nxh6 18.Be4 Bxe4 19.Rxe4 {with a slight advantage for White in Hakobyan-Kavutskiy, Las Vegas 2022.} ) 9...Qxg3 10.hxg3 {White is usually better in this type of endgame, and I think this position is no exception. There are two breaking points that will be constant sources of concern for Black, the g4 advance and the a4 advance.} 10...Bc5 11.g4 {Other moves are also possible.} ( 11.Kb1 {As I always say to my students, the Kb1 move is almost never bad after long castling.} 11...Nxd4 12.Bxd4 Bxd4 13.Rxd4 Ne7 14.Be2 Nc6 15.Rd2 {White has a tiny advantage.} ) ( 11.Nf5 $5 {[%c_effect f5;square;f5;type;Interesting;persistent;true]} 11...Bxe3+ 12.Nxe3 Nf6 13.f3 {The position is more or less equal.} ) ( 11.Be2 ) 11...Bb7 12.f3 ( 12.gxh5 Nf6 {Black regains the pawn due to the threat of 13...b4 followed by capturing on e4.} ) 12...g6 ( 12...h4 $5 {[%c_effect h4;square;h4;type;Interesting;persistent;true] This is the favorite move of the machine, which considers the position OK for Black. The move is hardly human, as the pawn seems to be abandoned to its own luck.} ) 13.Nf5 ( 13.a4 $5 {[%c_effect a4;square;a4;type;Interesting;persistent;true] We will see this typical move in many lines. It creates weaknesses in Black's queenside and should always be considered.} 13...b4 14.Nce2 d6 15.Kb1 Nf6 16.Bg5 $1 {[%c_effect g5;square;g5;type;GreatFind;persistent;true]} 16...Nh7 17.Bh6 $1 {[%c_effect h6;square;h6;type;GreatFind;persistent;true] Black is under pressure since} 17...hxg4 $2 {[%c_effect g4;square;g4;type;Mistake;persistent;true] fails to} 18.Bg7 ) 13...Bxe3+ 14.Nxe3 Ke7 15.Be2 d6 16.g5 ( 16.a3 Nf6 17.g5 Nd7 18.f4 f6 19.gxf6+ Nxf6 20.Bf3 {with an even position.} ) 16...f6 17.f4 {A risky move, as the pawn structure will be damaged. But White tactically justifies his plan.} ( 17.gxf6+ Nxf6 {with an equal position.} ) 17...fxg5 18.fxg5 Ne5 19.Rd4 $1 {[%c_effect d4;square;d4;type;GreatFind;persistent;true] A good move, setting up the counterplay with a2-a4.} 19...Rd8 $6 {[%c_effect d8;square;d8;type;Inaccuracy;persistent;true] This move order is imprecise.} ( 19...Nc6 20.Rd2 Ne5 {may lead to move repetition and a draw, something van Foreest usually avoids.} ) ( 19...Nf7 20.Rhd1 ( 20.a4 $6 {[%c_effect a4;square;a4;type;Inaccuracy;persistent;true] Is not so good here, since the a8-rook comes into play after White captures on b5.} 20...Nxg5 ) 20...Rd8 21.a4 $1 {[%c_effect a4;square;a4;type;GreatFind;persistent;true]} 21...Nxg5 22.e5 Nf7 23.axb5 axb5 24.exd6+ Rxd6 25.Nxb5 Rxd4 26.Nxd4 {with a likely draw.} ) 20.Rhd1 $6 {[%c_effect d1;square;d1;type;Inaccuracy;persistent;true]} ( 20.a4 $1 {[%c_effect a4;square;a4;type;GreatFind;persistent;true] This is the correct move to exploit Black's inaccuracy.} 20...Nc6 21.Rd2 b4 22.Ncd1 {The knight goes to h3, defending the g5-pawn, while the other knight can go to c4. White has the advantage.} ) 20...h4 $6 {[%c_effect h4;square;h4;type;Inaccuracy;persistent;true] Too ambitious.} ( 20...Nc6 21.R4d2 Ne5 {With a probable move repetition.} ) ( 20...Nf7 21.a4 {leads to the variation seen above.} ) 21.Ng4 $6 {[%c_effect g4;square;g4;type;Inaccuracy;persistent;true]} ( 21.a4 $1 {[%c_effect a4;square;a4;type;GreatFind;persistent;true] Again this move leads to an advantage for White.} 21...Nc6 22.R4d2 b4 ( 22...bxa4 23.Nc4 $1 {[%c_effect c4;square;c4;type;GreatFind;persistent;true] and the d-pawn falls.} ) 23.Na2 {Black will have a hard time defending the weaknesses on the queenside.} ) 21...Nc6 22.R4d2 ( 22.R4d3 {This move gives White additional options after} 22...Rh5 23.e5 d5 {since now the rook can move across the third rank, either to h3 or c3.} 24.Ne4 ( 24.Rh3 $5 {[%c_effect h3;square;h3;type;Interesting;persistent;true]} ) 24...Bc8 25.Ngf6 Rh8 26.Rc3 $5 {[%c_effect c3;square;c3;type;Interesting;persistent;true] This is a difference compared to the game.} 26...Nxe5 27.Rc7+ Bd7 28.Nxd5+ $1 {[%c_effect d5;square;d5;type;GreatFind;persistent;true]} 28...exd5 29.Rxd5 Ke6 30.Rcc5 Nc6 31.Bg4+ Ke7 32.Rxd7+ Rxd7 33.Rxc6 Rd4 $1 {[%c_effect d4;square;d4;type;GreatFind;persistent;true]} 34.Re6+ Kf7 35.c3 {with excellent compensation for the exchange.} ) 22...Rh5 23.e5 d5 24.Ne4 $1 {[%c_effect e4;square;e4;type;GreatFind;persistent;true] Abdusattorov shows his great tactical vision and manages to activate the knight in a creative way.} 24...Bc8 ( 24...dxe4 {This seems to be losing for Black, but the computer finds some incredible resources.} 25.Rxd8 Nxd8 26.Nf6 {Many (if not all) humans would rule out this variation for Black here, but the machine plays along.} 26...Rxg5 $1 {[%c_effect g5;square;g5;type;GreatFind;persistent;true]} ( 26...Nxf6 $2 {[%c_effect f6;square;f6;type;Mistake;persistent;true]} 27.exf6+ Ke8 28.Bxh5 gxh5 29.g6 {and the pawns decide the game.} ) 27.Rd7+ Kf8 28.Rxd8+ Kf7 $1 {[%c_effect f7;square;f7;type;GreatFind;persistent;true]} 29.Rxg8 e3 $1 {[%c_effect e3;square;e3;type;GreatFind;persistent;true] and the computer continues with incredible variations showing a draw.} ) 25.Ngf6 $6 {[%c_effect f6;square;f6;type;Inaccuracy;persistent;true]} ( 25.Ngf2 $1 {[%c_effect f2;square;f2;type;GreatFind;persistent;true] is a difficult move and better than the one played in the game.} 25...Rh8 ( 25...dxe4 26.Rxd8 Nxd8 27.Bxh5 gxh5 28.Nxe4 {White has some advantage in this unbalanced endgame.} ) 26.Nd6 Nxe5 27.Nxc8+ Rxc8 28.Re1 {With good compensation for the pawn, as Black has difficulties defending the central pawns.} ) 25...Rh8 26.Nxg8+ Rdxg8 27.Nf6 Rd8 28.Re1 h3 $6 {[%c_effect h3;square;h3;type;Inaccuracy;persistent;true]} ( 28...Nxe5 $1 {[%c_effect e5;square;e5;type;GreatFind;persistent;true] leads to an advantage for Black:} 29.Bxb5 h3 $1 {[%c_effect h3;square;h3;type;GreatFind;persistent;true] This move was probably missed by van Foreest.} 30.Bd3 ( 30.gxh3 $2 {[%c_effect h3;square;h3;type;Mistake;persistent;true]} 30...Nf3 ) ( 30.Rxe5 $2 {[%c_effect e5;square;e5;type;Mistake;persistent;true]} 30...h2 $19 ) 30...h2 31.Rh1 Bb7 {with a clear advantage.} ) 29.gxh3 Rxh3 30.Bg4 $6 {[%c_effect g4;square;g4;type;Inaccuracy;persistent;true]} ( 30.Bd3 $1 {[%c_effect d3;square;d3;type;GreatFind;persistent;true] is better.} 30...Rdh8 ( 30...Kf7 $6 {[%c_effect f7;square;f7;type;Inaccuracy;persistent;true]} 31.Rf2 Kg7 32.b3 {Black has no active plan since} 32...Rdh8 $2 {[%c_effect h8;square;h8;type;Mistake;persistent;true]} 33.Ref1 $1 {[%c_effect f1;square;f1;type;GreatFind;persistent;true]} 33...Nxe5 {loses to} 34.Ng4 $1 {[%c_effect g4;square;g4;type;GreatFind;persistent;true] with the idea:} 34...Nxg4 35.Rf7+ Kg8 36.Rf8+ Kg7 37.R1f7# ) 31.Bxg6 Rg3 32.Nh7 $1 {[%c_effect h7;square;h7;type;GreatFind;persistent;true]} 32...Bd7 {and the game will likely end in a draw, for instance:} 33.Rd3 Rxd3 34.Bxd3 Rg8 35.g6 Rg7 36.Nf6 Nxe5 $1 {[%c_effect e5;square;e5;type;GreatFind;persistent;true]} 37.Nxd5+ Kd6 38.Nf4 Nxd3+ 39.cxd3 e5 $1 {[%c_effect e5;square;e5;type;GreatFind;persistent;true] The g-pawn falls and the players can shake hands.} ) 30...Rh4 31.b3 Rdh8 32.Kb2 Rh2 33.Ree2 Rxe2 34.Rxe2 a5 $1 {[%c_effect a5;square;a5;type;GreatFind;persistent;true] The position is very unpleasant for White because of the weaknesses on g5 and e5. Black's move is intended to activate the bishop.} 35.a3 Ba6 36.Re1 b4 37.a4 $6 {[%c_effect a4;square;a4;type;Inaccuracy;persistent;true]} ( 37.axb4 {Gives better drawing chances.} 37...Nxb4 ( 37...axb4 {This is also possible, but in this case it's clear that the pawn exchange was helpful for White, as usually the case when defending a worse endgame.} ) 38.Be2 Bxe2 39.Rxe2 ) 37...Nd8 $1 {[%c_effect d8;square;d8;type;GreatFind;persistent;true] An excellent move. The knight heads to f7, attacking both weaknesses.} 38.Be2 $6 {[%c_effect e2;square;e2;type;Inaccuracy;persistent;true]} ( 38.Bf3 {is a better try, with the idea of sacrificing the bishop on d5 if the knight goes to f7.} ) 38...Bxe2 39.Rxe2 Nf7 {Now the pawns fall, and the position is undefendable.} 40.c3 bxc3+ 41.Kxc3 Nxg5 42.b4 Rh3+ {The rest is easy.} 43.Kb2 axb4 44.Rc2 Nf3 45.Ng4 Nd4 46.Rc8 Rb3+ 47.Ka2 Ra3+ 48.Kb2 Rxa4 49.Nf6 b3 {A heartbreaking loss for Abdusattorov and a great victory for van Foreest, a player whose games are always entertaining.} 0-1